bitfinex/quotes_BTCUSD_20230905
["timestamp","ask_amount","ask_price","bid_price","bid_amount"]
[1693892400587,0.02457733,25715.0,25714.0,1.71928123]
[1693892400790,0.02457733,25715.0,25714.0,1.65238123]
[1693892403162,0.02457733,25715.0,25714.0,1.51259969]
[1693892404808,0.02457733,25715.0,25714.0,1.419412]
[1693892407707,0.02457733,25715.0,25714.0,1.334012]
[1693892408981,0.02457733,25715.0,25714.0,0.050666]
[1693892408982,1.04096644,25715.0,25714.0,0.050666]
[1693892409490,0.26321044,25715.0,25714.0,0.050666]
[1693892409915,0.26321044,25715.0,25714.0,0.478448]
[1693892411290,0.26321044,25715.0,25714.0,0.050666]
[1693892415324,0.26321044,25715.0,25714.0,0.478448]
[1693892422169,0.26321044,25715.0,25714.0,0.050666]
[1693892427889,1.04096644,25715.0,25714.0,0.050666]
[1693892432009,1.05848348,25715.0,25714.0,0.050666]
[1693892433108,1.05848348,25715.0,25714.0,0.035666]
[1693892438193,0.28072748,25715.0,25714.0,0.035666]
[1693892441701,0.28072748,25715.0,25714.0,0.030666]
[1693892451543,0.28072748,25715.0,25714.0,0.002]
[1693892451743,1.44512875,25715.0,25714.0,0.002]
[1693892453248,0.66737275,25715.0,25714.0,0.002]
[1693892454347,0.66737275,25715.0,25714.0,0.429782]
[1693892460661,0.7332907,25715.0,25714.0,0.429782]
[1693892461069,0.66737275,25715.0,25714.0,0.429782]
[1693892464598,0.66737275,25715.0,25714.0,0.857564]
[1693892470497,0.28072748,25715.0,25714.0,0.857564]
[1693892470683,0.28072748,25715.0,25714.0,1.285346]
[1693892475778,0.04209437,25715.0,25714.0,1.285346]
[1693892511872,0.04209437,25715.0,25714.0,0.857564]
[1693892514293,0.04209437,25715.0,25714.0,1.285346]
[1693892531130,0.28144072,25715.0,25714.0,1.285346]
[1693892538722,0.28144072,25715.0,25714.0,0.857564]
[1693892542709,0.2833978,25715.0,25714.0,0.857564]
[1693892546262,0.2833978,25715.0,25714.0,0.429782]
[1693892550604,1.0611538,25715.0,25714.0,0.002]
[1693892551506,3.08912654,25715.0,25714.0,0.002]
[1693892552303,3.00372654,25715.0,25714.0,0.002]
[1693892552507,2.99872654,25715.0,25711.0,0.52106487]
[1693892552723,3.00072654,25715.0,25711.0,0.52106487]
[1693892553265,2.99872654,25715.0,25711.0,0.52106487]
[1693892553474,0.29674293,25714.0,25711.0,0.52106487]
[1693892553676,0.777816,25713.0,25711.0,0.427832]
[1693892553877,0.81561338,25713.0,25711.0,0.427832]
[1693892554403,0.81561338,25713.0,25711.0,0.429832]
[1693892554602,0.81561338,25713.0,25711.0,0.427832]
[1693892555127,0.81561338,25713.0,25711.0,0.429832]
[1693892555128,0.81761338,25713.0,25711.0,0.429832]
[1693892556180,0.81761338,25713.0,25711.0,0.857664]
[1693892556383,0.03979738,25713.0,25711.0,0.857664]
[1693892556811,0.04179738,25713.0,25711.0,0.857664]
[1693892562025,0.32902444,25713.0,25711.0,0.857664]
[1693892564574,0.32902444,25713.0,25711.0,1.285496]
[1693892576660,0.2456998,25712.0,25711.0,1.285496]
[1693892577087,0.2831499,25712.0,25711.0,1.285496]
[1693892577580,0.2831499,25712.0,25711.0,1.283496]
[1693892578093,0.0394501,25712.0,25711.0,1.285496]
[1693892578401,0.0414501,25712.0,25711.0,1.285496]
[1693892591582,0.0414501,25712.0,25711.0,1.37872887]
[1693892597487,0.0414501,25712.0,25711.0,1.4253453]
[1693892607807,0.0414501,25712.0,25711.0,1.5185868]
[1693892608640,0.0414501,25712.0,25711.0,1.4253453]
[1693892608841,0.0414501,25712.0,25711.0,1.51858649]
[1693892610633,0.0414501,25712.0,25711.0,1.4253453]
[1693892610834,0.0414501,25712.0,25711.0,1.51858612]
[1693892611242,0.0414501,25712.0,25711.0,1.4253453]
[1693892635469,0.0414501,25712.0,25711.0,1.42536722]
[1693892638613,0.0414501,25712.0,25711.0,1.61186218]
[1693892639239,0.0414501,25712.0,25711.0,1.42536722]
[1693892639671,0.0414501,25712.0,25711.0,1.61186218]
[1693892641021,0.0414501,25712.0,25711.0,1.47199096]
[1693892642730,0.0414501,25712.0,25711.0,1.61190495]
[1693892653198,0.0414501,25712.0,25711.0,1.69730495]
[1693892655129,0.0414501,25712.0,25711.0,1.61190495]
[1693892655581,0.0414501,25712.0,25711.0,1.51869892]
[1693892666275,0.0414501,25712.0,25711.0,1.37878493]
[1693892669585,0.0414501,25712.0,25711.0,1.3787686]
[1693892696351,0.0414501,25712.0,25711.0,1.51867751]
[1693892702229,0.0414501,25712.0,25711.0,1.42540491]
[1693892702950,0.0414501,25712.0,25711.0,1.51870557]
[1693892704555,0.0414501,25712.0,25711.0,1.37879666]
[1693892704814,0.0414501,25712.0,25711.0,1.51870557]
[1693892705961,0.0414501,25712.0,25711.0,1.60410557]
[1693892706163,0.0414501,25712.0,25711.0,1.68564557]
[1693892706380,0.0414501,25712.0,25711.0,1.68516557]
[1693892706591,0.0414501,25712.0,25711.0,1.68510557]
[1693892706797,0.0414501,25712.0,25711.0,1.68480557]
[1693892706997,0.0414501,25712.0,25711.0,1.68450557]
[1693892707133,0.0414501,25712.0,25711.0,1.68420557]
[1693892707331,0.0414501,25712.0,25711.0,1.68372557]
[1693892707537,0.0414501,25712.0,25711.0,1.68270557]
[1693892707804,0.0414501,25712.0,25711.0,1.68240557]
[1693892708003,0.0414501,25712.0,25711.0,1.68216557]
[1693892708227,0.0414501,25712.0,25711.0,1.68192557]
[1693892708421,0.0414501,25712.0,25711.0,1.68168557]
[1693892708619,0.0414501,25712.0,25711.0,1.68138557]
[1693892708822,0.0414501,25712.0,25711.0,1.67634557]
[1693892709029,0.0414501,25712.0,25711.0,1.67526557]
[1693892709233,0.0414501,25712.0,25711.0,1.67418557]
[1693892709384,0.0414501,25712.0,25711.0,1.67376557]
[1693892709586,0.0414501,25712.0,25711.0,1.67274557]
[1693892709804,0.0414501,25712.0,25711.0,1.67256557]
[1693892710032,0.0414501,25712.0,25711.0,1.67034557]
[1693892710221,0.0414501,25712.0,25711.0,1.67250557]
[1693892710466,0.0414501,25712.0,25711.0,1.66998557]
[1693892710669,0.0414501,25712.0,25711.0,1.67364557]
[1693892710803,0.0414501,25712.0,25711.0,1.67460557]
[1693892711005,0.0414501,25712.0,25711.0,1.67388557]
[1693892711223,0.0414501,25712.0,25711.0,1.67346557]
[1693892711427,0.0414501,25712.0,25711.0,1.60410557]
[1693892711631,0.0414501,25712.0,25711.0,1.67046557]
[1693892711902,0.0414501,25712.0,25711.0,1.67064557]
[1693892712084,0.0414501,25712.0,25711.0,1.370896]
[1693892716738,0.0414501,25712.0,25711.0,1.46419666]
[1693892720705,0.0414501,25712.0,25711.0,1.370896]
[1693892721281,0.0414501,25712.0,25711.0,1.46417177]
[1693892723139,0.0414501,25712.0,25711.0,1.44917177]
[1693892732242,0.04615379,25712.0,25711.0,1.44917177]
[1693892757072,0.05067846,25712.0,25711.0,1.44917177]
[1693892761809,0.05067846,25712.0,25711.0,1.58908542]
[1693892764668,0.0493362,25712.0,25711.0,1.58908542]
[1693892783341,0.0493362,25712.0,25711.0,1.16125342]
[1693892784355,0.05019312,25712.0,25711.0,1.16125342]
[1693892785574,0.05019312,25712.0,25711.0,1.17625342]
[1693892795985,0.05019312,25712.0,25711.0,0.32058942]
[1693892796234,0.05019312,25712.0,25711.0,0.23518942]
[1693892796235,0.27451776,25712.0,25711.0,0.23518942]
[1693892796384,1.83020976,25712.0,25711.0,0.002]
[1693892796797,1.82820976,25712.0,25711.0,0.002]
[1693892796995,1.8240165,25712.0,25709.0,0.52114077]
[1693892797222,1.8240165,25712.0,25711.0,0.002]
[1693892797223,1.8290165,25712.0,25711.0,0.002]
[1693892797641,1.8290165,25712.0,25709.0,0.52114077]
[1693892797642,1.8240165,25712.0,25709.0,0.52114077]
[1693892797846,0.21816593,25711.0,25709.0,0.52114077]
[1693892799285,0.21816593,25711.0,25709.0,0.427865]
[1693892800191,0.22016593,25711.0,25709.0,0.429865]
[1693892800392,0.22316593,25711.0,25709.0,0.429865]
[1693892800740,0.04043706,25710.0,25709.0,0.429865]
[1693892802818,0.04343706,25710.0,25709.0,0.427865]
[1693892803240,0.04543706,25710.0,25709.0,0.429865]
[1693892803864,0.04543706,25710.0,25709.0,0.85773]
[1693892806985,0.04543706,25710.0,25709.0,1.285595]
[1693892807954,0.04996166,25710.0,25709.0,1.285595]
[1693892813203,0.04996166,25710.0,25709.0,1.370995]
[1693892818961,0.04996166,25710.0,25709.0,1.437895]
[1693892819162,0.04996166,25710.0,25709.0,1.437775]
[1693892819346,0.04996166,25710.0,25709.0,1.438255]
[1693892819496,0.04996166,25710.0,25709.0,1.436695]
[1693892819703,0.04996166,25710.0,25709.0,1.436515]
[1693892819906,0.04996166,25710.0,25709.0,1.370995]
[1693892820357,0.04996166,25710.0,25709.0,1.444615]
[1693892820553,0.04996166,25710.0,25709.0,1.441675]
[1693892820771,0.04996166,25710.0,25709.0,1.442455]
[1693892820982,0.04996166,25710.0,25709.0,1.441495]
[1693892821215,0.04996166,25710.0,25709.0,1.440835]
[1693892821670,0.04996166,25710.0,25709.0,1.440715]
[1693892821824,0.04996166,25710.0,25709.0,1.438435]
[1693892822021,0.04996166,25710.0,25709.0,1.437355]
[1693892822229,0.04996166,25710.0,25709.0,1.437535]
[1693892822426,0.04996166,25710.0,25709.0,1.442935]
[1693892822632,0.04996166,25710.0,25709.0,1.439875]
[1693892822842,0.04892941,25710.0,25709.0,1.444075]
[1693892823050,0.04892941,25710.0,25709.0,1.442455]
[1693892823231,0.04892941,25710.0,25709.0,1.443295]
[1693892823436,0.04892941,25710.0,25709.0,1.443115]
[1693892823644,0.04892941,25710.0,25709.0,1.442275]
[1693892823847,0.04892941,25710.0,25709.0,1.443115]
[1693892824049,0.04892941,25710.0,25709.0,1.443055]
[1693892824255,0.04892941,25710.0,25709.0,1.442215]
[1693892824456,0.04892941,25710.0,25709.0,1.443115]
[1693892824743,0.04892941,25710.0,25709.0,1.443835]
[1693892824954,0.04892941,25710.0,25709.0,1.443895]
[1693892825140,0.04892941,25710.0,25709.0,1.444015]
[1693892825635,0.04892941,25710.0,25709.0,1.443955]
[1693892825860,0.04892941,25710.0,25709.0,1.444015]
[1693892826583,0.04892941,25710.0,25709.0,1.443955]
[1693892826786,0.04892941,25710.0,25709.0,1.444015]
[1693892826966,0.04892941,25710.0,25709.0,1.443775]
[1693892827145,0.04892941,25710.0,25709.0,1.443895]
[1693892827348,0.04892941,25710.0,25709.0,1.443535]
[1693892827572,0.04892941,25710.0,25709.0,1.445395]
[1693892827773,0.04892941,25710.0,25709.0,1.445455]
[1693892827986,0.04892941,25710.0,25709.0,1.445875]
[1693892828184,0.04892941,25710.0,25709.0,1.446055]
[1693892828359,0.04892941,25710.0,25709.0,1.445695]
[1693892828555,0.04892941,25710.0,25709.0,1.446235]
[1693892828807,0.04892941,25710.0,25709.0,1.445515]
[1693892829131,0.04892941,25710.0,25709.0,1.442695]
[1693892829313,0.04892941,25710.0,25709.0,1.440475]
[1693892829519,0.04892941,25710.0,25709.0,1.440535]
[1693892829926,0.04892941,25710.0,25709.0,1.442095]
[1693892830150,0.04892941,25710.0,25709.0,1.442155]
[1693892830357,0.04892941,25710.0,25709.0,1.440535]
[1693892830543,0.04892941,25710.0,25709.0,1.438975]
[1693892830703,0.04892941,25710.0,25709.0,1.440595]
[1693892830897,0.04892941,25710.0,25709.0,1.441015]
[1693892831100,0.04892941,25710.0,25709.0,1.441435]
[1693892831345,0.04892941,25710.0,25709.0,1.441615]
[1693892831706,0.04892941,25710.0,25709.0,1.441675]
[1693892832073,0.04892941,25710.0,25709.0,1.440955]
[1693892832274,0.04892941,25710.0,25709.0,1.441795]
[1693892832455,0.04892941,25710.0,25709.0,1.441855]
[1693892832656,0.04892941,25710.0,25709.0,1.439335]
[1693892832857,0.04892941,25710.0,25709.0,1.439095]
[1693892833058,0.04892941,25710.0,25709.0,1.439215]
[1693892833266,0.04892941,25710.0,25709.0,1.440475]
[1693892833417,0.04892941,25710.0,25709.0,1.440895]
[1693892833803,0.04892941,25710.0,25709.0,1.440355]
[1693892834204,0.04892941,25710.0,25709.0,1.440055]
[1693892834423,0.04892941,25710.0,25709.0,1.438255]
[1693892834626,0.04892941,25710.0,25709.0,1.438195]
[1693892834866,0.04892941,25710.0,25709.0,1.437655]
[1693892835195,0.04892941,25710.0,25709.0,1.439515]
[1693892835398,0.04892941,25710.0,25709.0,1.437475]
[1693892835596,0.04892941,25710.0,25709.0,1.437535]
[1693892835826,0.04892941,25710.0,25709.0,1.436695]
[1693892836001,0.04892941,25710.0,25709.0,1.83564027]
[1693892836203,0.04892941,25710.0,25709.0,1.83774027]
[1693892836405,0.04892941,25710.0,25709.0,1.83780027]
[1693892836587,0.04892941,25710.0,25709.0,1.83768027]
[1693892836787,0.04892941,25710.0,25709.0,1.83882027]
[1693892836991,0.04892941,25710.0,25709.0,1.83756027]
[1693892837196,0.04892941,25710.0,25709.0,1.84284027]
[1693892837395,0.04892941,25710.0,25709.0,1.84278027]
[1693892837553,0.04892941,25710.0,25709.0,1.84290027]
[1693892837950,0.04892941,25710.0,25709.0,1.84284027]
[1693892838128,0.04892941,25710.0,25709.0,1.84086027]
[1693892838305,0.04892941,25710.0,25709.0,1.83942027]
[1693892838503,0.04892941,25710.0,25709.0,1.84050027]
[1693892838706,0.04892941,25710.0,25709.0,1.83756027]
[1693892838912,0.04892941,25710.0,25709.0,1.83354027]
[1693892839115,0.04892941,25710.0,25709.0,1.83264027]
[1693892839320,0.04892941,25710.0,25709.0,1.92489604]
[1693892839522,0.04892941,25710.0,25709.0,1.92483604]
[1693892839702,0.04892941,25710.0,25709.0,1.92477604]
[1693892840292,0.04892941,25710.0,25709.0,1.92465604]
[1693892840493,0.04892941,25710.0,25709.0,1.92459604]
[1693892840722,0.04892941,25710.0,25709.0,1.91829604]
[1693892840936,0.04892941,25710.0,25709.0,1.91673604]
[1693892841131,0.04892941,25710.0,25709.0,1.85091604]
[1693892841528,0.04892941,25710.0,25709.0,1.91643604]
[1693892841744,0.04892941,25710.0,25709.0,1.91631604]
[1693892841949,0.04892941,25710.0,25709.0,1.85091604]
[1693892843658,0.04892941,25710.0,25709.0,1.92375604]
[1693892843876,0.04892941,25710.0,25709.0,1.92069604]
[1693892844078,0.04892941,25710.0,25709.0,1.92195604]
[1693892844317,0.04892941,25710.0,25709.0,1.92201604]
[1693892844529,0.04892941,25710.0,25709.0,1.92195604]
[1693892844732,0.04892941,25710.0,25709.0,1.92045604]
[1693892845026,0.04892941,25710.0,25709.0,2.06060969]
[1693892845189,0.04892941,25710.0,25709.0,1.96727392]
[1693892845596,0.04892941,25710.0,25709.0,1.96679392]
[1693892845977,0.04892941,25710.0,25709.0,1.96601392]
[1693892846177,0.04892941,25710.0,25709.0,1.96547392]
[1693892846495,0.04892941,25710.0,25709.0,1.97009392]
[1693892846701,0.04892941,25710.0,25709.0,1.97027392]
[1693892847191,0.04892941,25710.0,25709.0,1.97021392]
[1693892847372,0.04892941,25710.0,25709.0,1.97015392]
[1693892847576,0.04892941,25710.0,25709.0,1.96955392]
[1693892847729,0.04892941,25710.0,25709.0,1.96961392]
[1693892847937,0.04892941,25710.0,25709.0,1.97015392]
[1693892848138,0.04892941,25710.0,25709.0,1.96997392]
[1693892848340,0.04892941,25710.0,25709.0,1.96991392]
[1693892848569,0.04892941,25710.0,25709.0,1.96997392]
[1693892848766,0.04892941,25710.0,25709.0,1.97003392]
[1693892849499,0.04892941,25710.0,25709.0,1.97009392]
[1693892849726,0.04892941,25710.0,25709.0,1.97021392]
[1693892849935,0.04892941,25710.0,25709.0,1.97009392]
[1693892850103,0.04892941,25710.0,25709.0,1.97069392]
[1693892850318,0.04892941,25710.0,25709.0,1.96895392]
[1693892850534,0.04892941,25710.0,25709.0,1.96889392]
[1693892850734,0.04892941,25710.0,25709.0,1.96835392]
[1693892850884,0.04892941,25710.0,25709.0,1.96859392]
[1693892851249,0.04892941,25710.0,25709.0,1.96865392]
[1693892851382,0.04892941,25710.0,25709.0,1.96925392]
[1693892851726,0.04892941,25710.0,25709.0,1.96937392]
[1693892851927,0.04892941,25710.0,25709.0,1.96925392]
[1693892852326,0.04892941,25710.0,25709.0,1.96919392]
[1693892852642,0.04892941,25710.0,25709.0,1.96937392]
[1693892852850,0.04659601,25710.0,25709.0,1.96931392]
[1693892853090,0.04659601,25710.0,25709.0,1.96937392]
[1693892853274,0.04659601,25710.0,25709.0,1.96925392]
[1693892853499,0.04659601,25710.0,25709.0,1.96937392]
[1693892853722,0.04659601,25710.0,25709.0,1.97249392]
[1693892854181,0.04659601,25710.0,25709.0,1.97243392]
[1693892854406,0.04659601,25710.0,25709.0,1.97237392]
[1693892854877,0.04659601,25710.0,25709.0,1.97231392]
[1693892855102,0.04659601,25710.0,25709.0,1.97183392]
[1693892855345,0.04659601,25710.0,25709.0,2.06519727]
[1693892855578,0.04659601,25710.0,25709.0,2.06567727]
[1693892855801,0.04659601,25710.0,25709.0,2.06501727]
[1693892856033,0.04659601,25710.0,25709.0,2.06489727]
[1693892856280,0.04659601,25710.0,25709.0,2.06591727]
[1693892856521,0.04659601,25710.0,25709.0,2.06495727]
[1693892856985,0.04659601,25710.0,25709.0,2.06825727]
[1693892857191,0.04659601,25710.0,25709.0,2.06705727]
[1693892857426,0.04659601,25710.0,25709.0,2.06819727]
[1693892857646,0.04659601,25710.0,25709.0,2.06801727]
[1693892857850,0.04659601,25710.0,25709.0,2.06819727]
[1693892858096,0.04659601,25710.0,25709.0,2.06675727]
[1693892858311,0.04659601,25710.0,25709.0,2.06453727]
[1693892858533,0.04659601,25710.0,25709.0,2.06501727]
[1693892858759,0.04659601,25710.0,25709.0,2.06495727]
[1693892858980,0.04659601,25710.0,25709.0,2.06477727]
[1693892859222,0.04659601,25710.0,25709.0,1.97237392]
[1693892859472,0.04659601,25710.0,25709.0,1.97141392]
[1693892859706,0.04659601,25710.0,25709.0,1.97132979]
[1693892859908,0.04659601,25710.0,25709.0,1.97144979]
[1693892860136,0.04659601,25710.0,25709.0,1.97054979]
[1693892860543,0.04659601,25710.0,25709.0,1.97060979]
[1693892860756,0.04659601,25710.0,25709.0,1.97096979]
[1693892860954,0.04659601,25710.0,25709.0,1.97090979]
[1693892861061,0.04659601,25710.0,25709.0,1.98662979]
[1693892861267,0.04659601,25710.0,25709.0,1.98734979]
[1693892861477,0.04659601,25710.0,25709.0,1.98752979]
[1693892861674,0.04659601,25710.0,25709.0,1.98506979]
[1693892862074,0.04659601,25710.0,25709.0,1.98470979]
[1693892862282,0.04659601,25710.0,25709.0,1.98350979]
[1693892862493,0.04659601,25710.0,25709.0,1.98338979]
[1693892862711,0.04659601,25710.0,25709.0,1.98314979]
[1693892862917,0.04659601,25710.0,25709.0,1.98392979]
[1693892863119,0.04659601,25710.0,25709.0,1.98386979]
[1693892863346,0.04659601,25710.0,25709.0,1.98380979]
[1693892863549,0.04659601,25710.0,25709.0,1.98344979]
[1693892863935,0.04659601,25710.0,25709.0,1.98308979]
[1693892864143,0.04659601,25710.0,25709.0,1.98296979]
[1693892864344,0.04659601,25710.0,25709.0,1.98284979]
[1693892864545,0.04659601,25710.0,25709.0,1.98278979]
[1693892864750,0.04659601,25710.0,25709.0,1.98284979]
[1693892864952,0.04659601,25710.0,25709.0,1.98314979]
[1693892865156,0.04659601,25710.0,25709.0,2.46774463]
[1693892865361,0.04659601,25710.0,25709.0,2.49006463]
[1693892865561,0.04659601,25710.0,25709.0,2.48982463]
[1693892865892,0.005,25710.0,25709.0,2.48880463]
[1693892866101,0.005,25710.0,25709.0,2.48820463]
[1693892866299,0.005,25710.0,25709.0,2.48784463]
[1693892866513,0.005,25710.0,25709.0,2.48718463]
[1693892866713,0.005,25710.0,25709.0,2.48934463]
[1693892866938,0.005,25710.0,25709.0,2.48904463]
[1693892867182,0.005,25710.0,25709.0,2.62866272]
[1693892867383,0.005,25710.0,25709.0,2.48658463]
[1693892867562,0.005,25710.0,25709.0,2.48880463]
[1693892867779,0.005,25710.0,25709.0,2.62818364]
[1693892867986,0.005,25710.0,25709.0,2.62782364]
[1693892868164,0.005,25710.0,25709.0,2.48748463]
[1693892868359,0.005,25710.0,25709.0,2.62711012]
[1693892868525,0.005,25710.0,25709.0,2.62801012]
[1693892868729,0.005,25710.0,25709.0,2.48814463]
[1693892868931,0.005,25710.0,25709.0,2.48694463]
[1693892869155,0.005,25710.0,25709.0,2.48658463]
[1693892869359,0.005,25710.0,25709.0,2.48634463]
[1693892869560,0.005,25710.0,25709.0,2.62710058]
[1693892869760,0.005,25710.0,25709.0,2.62674058]
[1693892869964,0.005,25710.0,25709.0,2.62650058]
[1693892870202,0.005,25710.0,25709.0,2.62638247]
[1693892870423,0.005,25710.0,25709.0,2.53202247]
[1693892870643,0.1558,25719.0,25712.0,0.4688]
[1693892870866,0.35752408,25720.0,25718.0,0.0854]
[1693892870867,0.26415593,25720.0,25718.0,0.0854]
[1693892871086,0.26415593,25720.0,25719.0,1.01005611]
[1693892871087,0.41995593,25720.0,25719.0,1.01005611]
[1693892871301,0.41995593,25720.0,25719.0,1.86545411]
[1693892871522,0.26415593,25720.0,25719.0,1.86545411]
[1693892871747,0.195,25722.0,25719.0,2.09744127]
[1693892871962,0.195,25722.0,25719.0,2.25209938]
[1693892872227,0.37539119,25723.0,25719.0,2.25209938]
[1693892872451,0.001,25720.0,25719.0,2.26109938]
[1693892872660,0.37539119,25723.0,25719.0,2.25142127]
[1693892872906,0.52829119,25723.0,25722.0,0.0854]
[1693892873113,0.52829119,25723.0,25722.0,1.795996]
[1693892873114,0.43492304,25723.0,25722.0,1.795996]
[1693892873347,0.23342038,25726.0,25722.0,1.795996]
[1693892873554,0.23342038,25726.0,25724.0,0.0854]
[1693892873555,0.1529,25725.0,25724.0,0.0854]
[1693892873759,0.51843557,25726.0,25724.0,0.940613]
[1693892873760,0.37838334,25726.0,25724.0,0.940613]
[1693892874471,0.28601519,25726.0,25724.0,1.368229]
[1693892875343,0.03969631,25725.0,25724.0,1.368229]
[1693892875555,0.03969631,25725.0,25724.0,1.370229]
[1693892876204,0.03969631,25725.0,25724.0,1.36674946]
[1693892877049,0.03969631,25725.0,25724.0,1.36474946]
[1693892877237,0.07669631,25725.0,25724.0,1.36874946]
[1693892877727,0.05769631,25725.0,25724.0,1.36674946]
[1693892878575,0.03969631,25725.0,25724.0,1.36474946]
[1693892878786,0.04069631,25725.0,25724.0,1.37374946]
[1693892879221,0.04169631,25725.0,25724.0,1.38174946]
[1693892880725,0.2562439,25725.0,25724.0,1.38174946]
[1693892883800,0.04169631,25725.0,25724.0,1.38174946]
[1693892895978,0.04169631,25725.0,25724.0,1.299829]
[1693892898243,0.04169631,25725.0,25724.0,0.872213]
[1693892905484,0.27110695,25725.0,25724.0,0.872213]
[1693892917590,0.3644751,25725.0,25724.0,0.872213]
[1693892918598,0.13506446,25725.0,25724.0,0.872213]
[1693892919404,0.27511669,25725.0,25724.0,0.872213]
[1693892923668,0.45279409,25725.0,25724.0,0.444602]
[1693892923882,2.15349328,25725.0,25724.0,0.017]
[1693892924299,2.63593135,25725.0,25724.0,0.017]
[1693892924509,2.40655982,25725.0,25724.0,0.017]
[1693892928343,2.40655982,25725.0,25724.0,0.444616]
[1693892928344,0.27502182,25725.0,25724.0,0.444616]
[1693892928540,0.27502182,25725.0,25724.0,0.872232]
[1693892929008,0.13502393,25725.0,25724.0,0.872232]
[1693892929572,0.27502182,25725.0,25724.0,0.872232]
[1693892929997,0.13502393,25725.0,25724.0,0.872232]
[1693892930193,0.13502393,25725.0,25724.0,0.444616]
[1693892936899,0.13502393,25725.0,25724.0,0.017]
[1693892938545,0.27502182,25725.0,25724.0,0.017]
[1693892940257,0.13502393,25725.0,25724.0,0.017]
[1693892940472,0.13502393,25725.0,25724.0,0.444616]
[1693892941235,0.27502182,25725.0,25724.0,0.444616]
[1693892941832,1.32300848,25725.0,25724.0,0.017]
[1693892942048,2.10046148,25725.0,25724.0,0.017]
[1693892942680,2.19387017,25725.0,25724.0,0.017]
[1693892946490,1.14588351,25725.0,25724.0,0.017]
[1693892946935,1.14631246,25725.0,25724.0,0.017]
[1693892949526,0.36885946,25725.0,25724.0,0.017]
[1693892952152,0.18212315,25725.0,25724.0,0.017]
[1693892953141,0.18212315,25725.0,25724.0,0.444616]
[1693892957756,0.18316939,25725.0,25724.0,0.444616]
[1693892957957,0.46160494,25725.0,25724.0,0.444616]
[1693892961571,0.46012975,25725.0,25724.0,0.444616]
[1693892962278,0.46012975,25725.0,25724.0,0.017]
[1693892963240,0.55344626,25725.0,25724.0,0.017]
[1693892963433,0.46012975,25725.0,25724.0,0.017]
[1693892972822,0.46205227,25725.0,25724.0,0.017]
[1693892977611,0.46205227,25725.0,25724.0,0.444616]
[1693892987997,0.46271665,25725.0,25724.0,0.444616]
[1693892992370,0.46271665,25725.0,25724.0,0.017]
[1693892994290,0.64945296,25725.0,25724.0,0.017]
[1693892995546,0.46271665,25725.0,25724.0,0.017]
[1693892995746,0.64945296,25725.0,25724.0,0.444616]
[1693892995950,0.37101741,25725.0,25724.0,0.444616]
[1693893000530,0.66656244,25725.0,25724.0,0.017]
[1693893000741,3.29337216,25725.0,25724.0,0.017]
[1693893000943,3.65877972,25725.0,25724.0,0.017]
[1693893001362,3.47204341,25725.0,25724.0,0.017]
[1693893002919,2.84868748,25725.0,25724.0,0.017]
[1693893003133,3.47294899,25725.0,25724.0,0.017]
[1693893004766,3.95053994,25725.0,25724.0,0.017]
[1693893004991,3.76386381,25725.0,25724.0,0.017]
[1693893005199,3.47294899,25725.0,25724.0,0.017]
[1693893005408,3.76506495,25725.0,25724.0,0.017]
[1693893005813,3.95173118,25725.0,25724.0,0.017]
[1693893005995,3.65961522,25725.0,25724.0,0.017]
[1693893007943,3.95257526,25725.0,25724.0,0.017]
[1693893009136,3.65961522,25725.0,25724.0,0.017]
[1693893009703,3.95657091,25725.0,25724.0,0.017]
[1693893012902,3.66493592,25725.0,25724.0,0.017]
[1693893013334,4.00333628,25725.0,25724.0,0.017]
[1693893013540,3.8125334,25725.0,25724.0,0.017]
[1693893014520,3.8125334,25725.0,25724.0,0.009]
[1693893014521,3.8115334,25725.0,25724.0,0.009]
[1693893014966,3.8125334,25725.0,25724.0,0.017]
[1693893015667,3.8115334,25725.0,25724.0,0.008]
[1693893015911,3.8205334,25725.0,25724.0,0.009]
[1693893016643,3.8195334,25725.0,25724.0,0.001]
[1693893017040,3.8295334,25725.0,25724.0,0.002]
[1693893017379,4.22133505,25725.0,25724.0,0.002]
[1693893017606,3.99209311,25725.0,25724.0,0.002]
[1693893022243,3.56677405,25725.0,25724.0,0.002]
[1693893022448,3.33398043,25725.0,25724.0,0.002]
[1693893030610,3.33090857,25725.0,25724.0,0.002]
[1693893030808,3.44573631,25725.0,25724.0,0.002]
[1693893031013,3.71054864,25725.0,25724.0,0.002]
[1693893031837,3.49242892,25725.0,25724.0,0.002]
[1693893032367,3.72167921,25725.0,25724.0,0.002]
[1693893032802,3.7261317,25725.0,25724.0,0.002]
[1693893033288,3.99152926,25725.0,25724.0,0.002]
[1693893037431,4.11277697,25725.0,25724.0,0.002]
[1693893037632,4.83702832,25725.0,25724.0,0.002]
[1693893037838,5.54139175,25725.0,25724.0,0.002]
[1693893038039,5.70569175,25725.0,25724.0,0.002]
[1693893038850,5.69669175,25725.0,25724.0,0.001]
[1693893039003,0.16,25723.0,25717.0,0.1885]
[1693893039215,0.0854,25718.0,25715.0,0.855519]
[1693893039507,0.863095,25717.0,25715.0,0.855519]
[1693893040793,0.867095,25717.0,25715.0,0.891519]
[1693893041110,0.781695,25717.0,25715.0,0.891519]
[1693893043265,0.03535428,25716.0,25715.0,0.891519]
[1693893044039,0.03535428,25716.0,25715.0,0.855519]
[1693893044246,0.03735428,25716.0,25715.0,0.872519]
[1693893045370,0.03935428,25716.0,25715.0,0.891519]
[1693893047782,0.04939065,25716.0,25715.0,0.891519]
[1693893050494,0.32077193,25716.0,25715.0,0.891519]
[1693893050945,1.87622193,25716.0,25715.0,0.036]
[1693893051703,1.87622193,25716.0,25715.0,0.019]
[1693893051704,1.87422193,25716.0,25715.0,0.019]
[1693893052179,1.87622193,25716.0,25715.0,0.034]
[1693893052378,1.60284065,25716.0,25715.0,0.015]
[1693893052590,0.82711565,25716.0,25715.0,0.032]
[1693893052893,0.04939065,25716.0,25715.0,0.032]
[1693893053066,0.04939065,25716.0,25715.0,0.459765]
[1693893053475,0.04939065,25716.0,25715.0,0.032]
[1693893053675,0.82711565,25716.0,25715.0,0.032]
[1693893054284,0.04939065,25716.0,25715.0,0.032]
[1693893054487,0.04939065,25716.0,25715.0,0.459765]
[1693893056931,0.04939065,25716.0,25715.0,0.88753]
[1693893067276,0.04939065,25716.0,25715.0,1.315295]
[1693893069978,0.04939065,25716.0,25715.0,1.85778027]
[1693893070180,0.04939065,25716.0,25715.0,1.85784027]
[1693893070397,0.04939065,25716.0,25715.0,1.85694027]